bitfinex-derivatives/quotes_ETHF0:USTF0_20250326
["timestamp","ask_amount","ask_price","bid_price","bid_amount"]
[1742992658907,0.0072759,2061.9,2061.8,0.9699]
[1742992659295,0.0072759,2061.9,2061.8,1.6757]
[1742992660406,0.0072759,2061.9,2061.8,3.8657]
[1742992660703,4.17751,2062.3,2062.2,0.96972]
[1742992661597,0.96966,2062.4,2062.3,0.96963]
[1742992661800,2.2839859,2062.5,2062.4,0.96962]
[1742992662011,0.96962,2062.4,2062.3,2.27975]
[1742992663013,2.2839859,2062.5,2062.4,0.96962]
[1742992663206,2.2839859,2062.5,2062.4,2.30992]
[1742992663806,0.0072759,2062.5,2062.4,2.30992]
[1742992665509,0.9768559,2062.5,2062.4,2.30992]
[1742992665710,2.2584559,2062.5,2062.4,2.30992]
[1742992666415,2.2584559,2062.5,2062.4,1.3403]
[1742992667114,0.96967,2062.3,2062.2,3.8561]
[1742992667310,0.96967,2062.3,2062.2,5.2431]
[1742992667710,2.25637,2062.3,2062.2,5.2431]
[1742992668319,2.25637,2062.3,2062.2,6.21282]
[1742992669014,1.2867,2062.3,2062.2,6.21282]
[1742992669324,0.96965,2062.4,2062.3,0.96963]
[1742992669619,2.29365,2062.4,2062.3,2.24793]
[1742992669823,2.29365,2062.4,2062.3,43.04793]
[1742992670509,1.324,2062.4,2062.3,43.04793]
[1742992671416,2.29362,2062.4,2062.3,43.04793]
[1742992674725,0.9768659,2062.5,2062.4,0.96962]
[1742992674919,0.9768659,2062.5,2062.4,2.36792]
[1742992677527,0.9768659,2062.5,2062.4,3.06332]
[1742992679237,0.0072759,2062.5,2062.4,3.06332]
[1742992679438,0.9768559,2062.5,2062.4,3.06332]
[1742992679637,2.3539559,2062.5,2062.4,3.06332]
[1742992680729,2.3539559,2062.5,2062.4,2.36792]
[1742992680928,2.3539559,2062.5,2062.4,0.96962]
[1742992681123,2.3539559,2062.5,2062.4,2.26582]
[1742992681836,2.3539559,2062.5,2062.4,0.96962]
[1742992682628,2.3539559,2062.5,2062.4,2.26582]
[1742992683935,0.96976,2062.1,2062.0,0.0072759]
[1742992684338,4.17756,2062.1,2062.0,0.0072759]
[1742992684739,5.55106,2062.1,2062.0,0.0072759]
[1742992684938,5.55106,2062.1,2062.0,40.8072759]
[1742992685244,5.55106,2062.1,2062.0,0.0072759]
[1742992687845,0.96995,2061.7,2061.6,40.8]
[1742992688244,0.97005,2061.5,2061.4,2.7677]
[1742992688440,0.97005,2061.5,2061.4,2.0964]
[1742992688640,0.97005,2061.5,2061.4,42.8964]
[1742992688839,0.97005,2061.5,2061.4,42.1932]
[1742992688840,2.26395,2061.5,2061.4,42.1932]
[1742992689039,0.97009,2061.4,2061.3,3.2078]
[1742992689344,2.26399,2061.4,2061.3,3.2078]
[1742992689544,2.26399,2061.4,2061.3,44.0078]
[1742992690245,2.26399,2061.4,2061.3,40.8]
[1742992691034,0.97014,2061.3,2061.2,0.0072759]
[1742992691240,2.32654,2061.3,2061.2,0.0072759]
[1742992697746,2.32654,2061.3,2061.2,1.3162759]
[1742992698056,0.97011,2061.4,2061.3,0.97009]
[1742992698257,0.0072759,2061.5,2061.4,0.97009]
[1742992698556,0.0072759,2061.5,2061.4,2.27909]
[1742992698761,0.0072759,2061.5,2061.4,43.07909]
[1742992699857,7.51216646,2062.3,2061.7,2.42487]
[1742992700051,8.48184646,2062.3,2062.2,0.96972]
[1742992700359,7.51216646,2062.3,2061.8,7.66664]
[1742992700548,1.3648,2062.2,2061.8,10.79964]
[1742992700746,2.33454,2062.2,2062.1,0.96973]
[1742992700944,2.3418159,2062.2,2062.1,0.96973]
[1742992704044,0.96976,2062.1,2062.0,2.33448]
[1742992704252,2.37766,2062.1,2062.0,2.33448]
[1742992704453,0.9770059,2062.2,2062.1,0.96976]
[1742992704848,2.3849059,2062.2,2062.0,2.33447]
[1742992705047,2.3849059,2062.2,2062.1,0.96976]
[1742992705248,2.3849059,2062.2,2062.1,2.33446]
[1742992705762,1.4151759,2062.2,2062.1,2.33446]
[1742992705959,0.0072759,2062.2,2062.1,2.33446]
[1742992706151,0.9769959,2062.2,2062.1,2.33446]
[1742992708558,0.0072759,2062.2,2062.1,2.33446]
[1742992710156,2.2914,2062.5,2062.4,0.96962]
[1742992710557,3.2078,2063.0,2062.8,0.96941]
[1742992710754,7.31014,2063.0,2062.9,1.3716]
[1742992711255,0.9695,2062.7,2062.6,0.96952]
[1742992711453,0.96948,2062.7,2062.6,0.96952]
[1742992711653,0.96948,2062.7,2062.4,3.2078]
[1742992711654,2.4236,2062.8,2062.4,4.1846659]
[1742992711853,0.96953,2062.6,2062.5,1.3645]
[1742992712349,0.96953,2062.6,2062.5,43.13408]
[1742992713063,2.29812,2062.7,2062.6,0.96953]
[1742992713268,2.29812,2062.7,2062.6,2.33403]
[1742992713471,2.29812,2062.7,2062.6,3.01143]
[1742992713964,0.96947,2062.8,2062.7,0.96948]
[1742992714156,0.96947,2062.8,2062.7,1.61368]
[1742992714466,0.96947,2062.8,2062.7,2.97818]
[1742992714864,0.96947,2062.8,2062.7,2.0087]
[1742992718163,0.96947,2062.8,2062.7,1.3645]
[1742992718669,3.75209,2062.9,2062.5,42.45954]
[1742992718969,0.96953,2062.6,2062.5,42.7819]
[1742992719169,0.96953,2062.6,2062.5,40.8]
[1742992719367,0.96958,2062.5,2062.4,4.1846959]
[1742992719878,2.37528,2062.5,2062.4,44.9846959]
[1742992720561,2.37528,2062.5,2062.4,44.0150759]
[1742992720761,2.37528,2062.5,2062.4,44.9846959]
[1742992720958,2.37528,2062.5,2062.4,45.4057759]
[1742992721160,2.37528,2062.5,2062.4,46.3753959]
[1742992721869,2.37528,2062.5,2062.4,43.1675959]
[1742992723771,1.4057,2062.5,2062.4,43.1675959]
[1742992727468,1.66031,2062.7,2062.6,0.96953]
[1742992727669,2.96031,2062.7,2062.6,0.96953]
[1742992728173,0.96953,2062.6,2062.5,2.25093]
[1742992728368,2.26953,2062.6,2062.5,2.25093]
[1742992729673,1.3,2062.6,2062.5,2.25093]
[1742992729975,2.26953,2062.6,2062.5,2.25098]
[1742992731570,0.6379,2062.9,2062.5,3.70532]
[1742992731765,0.96947,2062.8,2062.7,0.96945]
[1742992731972,0.96948,2062.7,2062.6,1.62069]
[1742992733580,2.38047,2062.8,2062.7,0.96948]
[1742992733776,0.96948,2062.7,2062.6,1.62069]
[1742992733976,2.38048,2062.7,2062.6,2.94489]
[1742992735778,1.411,2062.7,2062.6,2.94489]
[1742992735978,0.96947,2062.8,2062.7,0.96945]
[1742992736173,2.34507,2062.8,2062.7,2.34325]
[1742992736373,2.34507,2062.8,2062.6,0.6512]
[1742992736573,2.34508,2062.7,2062.6,0.96953]
[1742992736780,2.34508,2062.7,2062.4,46.4390459]
[1742992736781,0.96956,2062.6,2062.5,0.96954]
[1742992736972,2.34516,2062.6,2062.5,2.34334]
[1742992737178,2.99526,2062.6,2062.5,2.34334]
[1742992740179,2.99526,2062.6,2062.5,0.96954]
[1742992740381,0.96958,2062.5,2062.4,0.0072759]
[1742992740680,5.1091,2062.5,2061.8,0.6864]
[1742992740877,0.96985,2062.0,2061.9,41.76984]
[1742992741078,0.96985,2062.0,2061.9,40.8]
[1742992741482,0.96994,2061.8,2061.7,0.96993]
[1742992741690,0.96994,2061.8,2061.7,0.9772059]
[1742992741884,0.96994,2061.8,2061.7,41.7772059]
[1742992742774,2.2489,2061.9,2061.8,0.9699]
[1742992744484,2.2489,2061.9,2061.8,2.2483]
[1742992745184,2.2489,2061.9,2061.8,0.9699]
[1742992745377,0.9699,2061.8,2061.7,41.7771859]
[1742992745686,2.378,2061.8,2061.7,43.1495859]
[1742992747084,2.378,2061.8,2061.7,41.7771859]
[1742992747686,2.378,2061.8,2061.7,43.1495859]
[1742992747989,1.4081,2061.8,2061.7,43.1495859]
[1742992748189,2.378,2061.8,2061.7,43.1495859]
[1742992761401,1.4081,2061.8,2061.7,43.1495859]
[1742992761597,2.378,2061.8,2061.7,43.1495859]
[1742992761895,4.81967,2062.1,2061.8,2.42472]
[1742992762088,4.5091,2062.1,2062.0,0.96981]
[1742992762496,5.47886,2062.1,2062.0,0.96981]
[1742992762696,5.47886,2062.1,2062.0,1.66481]
[1742992764192,3.2078,2062.1,2062.0,1.66481]
[1742992766793,4.5227,2062.1,2062.0,1.66481]
[1742992770494,3.2078,2062.1,2062.0,1.66481]
[1742992770695,0.0072759,2062.2,2062.1,0.96976]
[1742992770896,0.0072759,2062.2,2062.1,2.97926]
[1742992771096,2.36002,2062.7,2062.6,0.96953]
[1742992772104,2.36002,2062.7,2062.6,2.29343]
[1742992778402,1.3905,2062.7,2062.6,2.29343]
[1742992779995,0.7140759,2062.9,2062.8,0.96943]
[1742992779996,0.0072759,2062.9,2062.8,0.96943]
[1742992780201,1.2885759,2062.9,2062.8,0.96943]
[1742992780693,0.0072759,2062.9,2062.8,1.65943]
[1742992780898,0.0072759,2062.9,2062.8,42.45943]
[1742992781098,0.6435,2063.3,2063.2,0.96925]
[1742992782002,1.61272,2063.3,2063.2,0.96925]
[1742992785101,1.3285,2063.4,2063.3,0.9692]
[1742992785804,1.3285,2063.4,2063.3,2.9868]
[1742992793708,2.29765,2063.4,2063.3,0.9692]
[1742992793908,1.3285,2063.4,2063.3,0.9692]
[1742992796414,2.29765,2063.4,2063.3,0.9692]
[1742992797208,1.3285,2063.4,2063.3,0.9692]
[1742992798113,1.3285,2063.4,2063.3,1.6597]
[1742992798818,0.00479134,2063.5,2063.4,0.96915]
[1742992799013,0.00479134,2063.5,2063.4,3.00305]
[1742992799419,1.29259134,2063.5,2063.4,3.00305]
[1742992800919,0.00479134,2063.5,2063.4,3.00305]
[1742992804415,1.3643,2063.7,2063.6,0.96906]
[1742992805020,1.3643,2063.7,2063.6,2.96436]
[1742992807214,1.3643,2063.7,2063.6,2.31416]
[1742992807528,1.3643,2063.7,2063.6,0.96906]
[1742992808026,1.3643,2063.7,2063.6,2.28506]
[1742992809417,3.8959,2064.0,2063.7,2.42243]
[1742992809723,0.6881,2064.0,2063.9,0.96892]
[1742992809928,0.6881,2064.0,2063.9,41.76892]
[1742992810531,0.6881,2064.0,2063.9,43.12472]
[1742992810827,2.6541,2064.0,2063.9,43.12472]
[1742992811526,1.966,2064.0,2063.9,43.12472]
[1742992811726,1.3118,2064.0,2063.9,43.12472]
[1742992812521,1.3118,2064.0,2063.9,2.32472]
[1742992812930,1.3118,2064.0,2063.9,43.12472]
[1742992813832,1.3205,2064.3,2063.9,44.578]
[1742992814026,3.2078,2064.4,2064.3,0.96873]
[1742992814626,3.2078,2064.4,2064.2,0.96877]
[1742992814825,0.7045,2064.3,2064.2,0.96877]
[1742992815332,2.1019,2064.3,2064.2,2.37247]
[1742992816647,2.1019,2064.3,2064.2,3.69867]
[1742992817932,2.1019,2064.3,2064.2,3.05497]
[1742992818136,2.1019,2064.3,2064.2,2.37247]
[1742992820238,1.3974,2064.3,2064.2,2.37247]
[1742992823143,1.3974,2064.3,2064.2,0.96877]
[1742992826239,1.3974,2064.3,2064.2,1.65327]
[1742992826936,1.3974,2064.3,2064.2,0.96877]
[1742992830742,3.8875,2064.5,2064.2,0.96877]
[1742992830743,6.3488,2064.8,2064.5,0.96864]
[1742992830942,0.6756,2064.7,2064.6,0.96859]
[1742992832045,1.9919,2064.7,2064.6,0.96859]
[1742992832247,1.9919,2064.7,2064.6,2.27459]
[1742992833435,1.9919,2064.7,2064.6,2.95099]
[1742992834246,1.9919,2064.7,2064.6,2.27459]
[1742992836449,1.3163,2064.7,2064.6,2.27459]
[1742992838554,3.2078,2065.1,2064.8,3.38971]
[1742992838744,3.8494,2065.1,2065.0,0.9684]
[1742992840160,4.5153,2065.1,2065.0,0.9684]
[1742992841645,5.9008,2065.1,2065.0,0.9684]
[1742992844159,6.86915,2065.1,2065.0,0.9684]
[1742992844354,5.9008,2065.1,2065.0,0.9684]
[1742992847650,6.86915,2065.1,2065.0,0.9684]
[1742992851762,5.9008,2065.1,2065.0,0.9684]
[1742992852353,6.3328,2065.4,2065.3,0.96826]
[1742992852554,7.30101,2065.4,2065.3,0.96826]
[1742992852755,7.30101,2065.4,2065.3,41.76826]
[1742992853363,7.30101,2065.4,2065.3,0.96826]
[1742992853566,9.25461,2065.4,2065.3,0.96826]
[1742992855368,0.96831,2065.3,2065.2,0.96827]
[1742992855568,0.96831,2065.2,2065.1,0.9755859]
[1742992858170,0.96831,2065.2,2065.1,0.0072759]
[1742992858468,0.96852,2064.8,2064.7,0.96849]
[1742992858864,5.54168,2064.9,2064.8,0.9685]
[1742992859065,4.17628,2064.9,2064.8,0.9685]
[1742992861471,0.9685,2064.8,2064.7,1.4041]
[1742992862266,0.9685,2064.8,2064.7,2.37263]
[1742992865777,4.17628,2064.9,2064.8,0.9685]
[1742992866076,4.17628,2064.9,2064.8,2.3285]
[1742992866779,4.17628,2064.9,2064.8,1.36]
[1742992867072,0.96854,2064.7,2064.6,41.4477759]
[1742992867474,0.96853,2064.8,2064.7,0.96851]
[1742992868478,0.96853,2064.8,2064.7,2.26681]
[1742992868678,3.2078,2064.9,2064.8,0.9685]
[1742992868679,4.17629,2064.9,2064.8,0.9685]
[1742992868869,4.17629,2064.9,2064.8,2.2668]
[1742992869775,4.17629,2064.9,2064.8,1.2983]
[1742992870281,4.17629,2064.9,2064.8,2.2668]
[1742992871379,4.17629,2064.9,2064.8,1.2983]
[1742992871581,4.17629,2064.9,2064.8,2.2668]
[1742992873480,4.17629,2064.9,2064.8,1.2983]
[1742992873667,4.17629,2064.9,2064.8,2.2668]
[1742992874774,5.48099,2064.9,2064.8,2.2668]
[1742992885185,5.48099,2064.9,2064.8,1.2983]
[1742992885386,6.93374,2064.9,2064.4,0.96864]
[1742992885593,4.17639,2064.6,2064.5,2.28244]
[1742992885798,4.17639,2064.6,2064.5,1.3138]
[1742992886295,5.58789,2064.6,2064.5,1.3138]
[1742992895507,0.96868,2064.4,2064.3,0.0072759]
[1742992895809,4.08268,2064.4,2064.3,1.2928759]
[1742992896208,4.73058,2064.4,2064.3,1.2928759]
[1742992896710,5.12712792,2064.4,2064.3,1.2928759]
[1742992897709,5.12712792,2064.4,2064.3,0.00248456]
[1742992898412,4.73058,2064.4,2064.3,0.00248456]
[1742992899110,4.73058,2064.4,2064.3,1.38358456]
[1742992900298,4.08268,2064.4,2064.3,2.35231456]
[1742992901810,4.17646,2064.6,2064.5,0.96864]
[1742992902118,6.3228,2064.6,2064.5,0.96864]
[1742992902410,7.29139,2064.6,2064.5,0.96864]
[1742992902714,0.96864,2064.5,2064.4,2.32244]
[1742992902902,2.26894,2064.5,2064.4,2.32244]
[1742992903813,2.26894,2064.5,2064.4,1.3538]
[1742992904616,2.26894,2064.5,2064.4,2.32248]
[1742992904812,2.26894,2064.5,2064.4,1.3538]
[1742992907519,2.26894,2064.5,2064.4,2.32248]
[1742992907912,2.26894,2064.5,2064.4,1.3538]
[1742992909814,2.26894,2064.5,2064.4,2.32248]
[1742992910522,2.26894,2064.5,2064.4,1.3538]
[1742992910719,2.26894,2064.5,2064.4,2.32248]
[1742992911617,2.26894,2064.5,2064.4,1.3538]
[1742992912015,2.26894,2064.5,2064.4,2.32248]
[1742992912216,2.26894,2064.5,2064.4,1.3538]
[1742992912523,2.26894,2064.5,2064.4,2.32248]
[1742992913018,2.26894,2064.5,2064.4,1.3538]
[1742992914926,5.47674,2064.5,2064.4,1.3538]
[1742992916128,6.23010766,2064.5,2064.4,1.3538]
[1742992916630,7.13796746,2064.5,2064.4,1.3538]
[1742992917522,0.96868,2064.4,2064.3,0.00248456]
[1742992917724,3.06494766,2064.4,2064.3,0.00248456]
[1742992918130,2.31158,2064.4,2064.3,0.00248456]
[1742992922833,2.31158,2064.4,2064.3,1.36368456]
[1742992923133,4.17648,2064.5,2064.3,1.36368456]
[1742992923325,0.96868,2064.4,2064.3,2.99789456]
[1742992924235,0.96868,2064.4,2064.3,2.02918456]
[1742992924435,2.30468,2064.4,2064.3,2.99791456]
[1742992924638,2.30468,2064.4,2064.3,2.02918456]
[1742992927337,0.96868,2064.4,2064.3,2.99791456]
[1742992929439,7.29047,2064.5,2064.4,0.96868]
[1742992929740,7.29047,2064.5,2064.4,2.31618]
[1742992931833,7.29047,2064.5,2064.4,1.3475]
[1742992936442,7.29047,2064.5,2064.4,2.31618]
[1742992936637,7.29047,2064.5,2064.4,1.3475]
[1742992936836,7.29047,2064.5,2064.4,2.31618]
[1742992937046,4.17647,2064.5,2064.4,2.31618]
[1742992941051,4.17647,2064.5,2064.4,1.3475]
[1742992941253,8.58357,2064.5,2064.4,1.3475]
[1742992941454,0.96868,2064.4,2064.3,0.00248456]
[1742992941651,2.25358,2064.4,2064.3,1.38208456]
[1742992942855,2.25358,2064.4,2064.3,0.00248456]
[1742992947356,5.36758,2064.4,2064.3,0.00248456]
[1742992947648,5.36758,2064.4,2064.3,0.97121456]
[1742992947852,5.36758,2064.4,2064.3,2.30971456]
[1742992951761,5.36758,2064.4,2064.3,1.34098456]
[1742992952059,5.36758,2064.4,2064.3,2.30971456]
[1742992952959,5.36758,2064.4,2064.3,1.34098456]
[1742992953159,5.36758,2064.4,2064.3,2.30971456]
[1742992953361,5.36758,2064.4,2064.3,3.71691456]
[1742992953551,5.36758,2064.4,2064.3,2.74818456]
[1742992954257,5.36758,2064.4,2064.3,3.71691456]
[1742992955758,5.36758,2064.4,2064.3,2.74818456]
[1742992955961,5.36758,2064.4,2064.3,3.71691456]
[1742992957563,2.25358,2064.4,2064.3,3.71691456]
[1742992958357,0.96868,2064.4,2064.3,3.71691456]
[1742992961354,6.10258,2064.5,2064.4,0.96868]
[1742992961664,5.46318,2064.5,2064.4,2.27298]
[1742992964760,3.114,2064.6,2064.5,0.96864]
[1742992964761,0.96863,2064.6,2064.5,0.96864]
[1742992964964,2.24763,2064.6,2064.5,2.37464]
[1742992965268,1.279,2064.6,2064.5,2.37464]
[1742992965561,3.2078,2064.8,2064.5,1.406]
[1742992965767,4.4868,2064.8,2064.7,0.96854]
[1742992966267,4.4868,2064.8,2064.7,2.37454]
[1742992967160,5.4553,2064.8,2064.7,2.37454]
[1742992967367,4.4868,2064.8,2064.7,2.37454]
[1742992968266,1.279,2064.8,2064.7,2.37454]
[1742992969871,4.08248,2064.9,2064.8,0.9685]
[1742992970072,4.08245,2064.9,2064.8,0.9685]
[1742992970272,5.35815,2064.9,2064.8,0.9685]
[1742992970480,2.24415,2064.9,2064.8,0.9685]
[1742992976783,1.2757,2064.9,2064.8,0.9685]
[1742992978485,2.24415,2064.9,2064.8,0.9685]
[1742992981789,1.2757,2064.9,2064.8,0.9685]
[1742992982088,2.24415,2064.9,2064.8,0.9685]
[1742992984191,1.2757,2064.9,2064.8,0.9685]
[1742992985786,2.24415,2064.9,2064.8,0.9685]
[1742992985984,1.2757,2064.9,2064.8,0.9685]
[1742992986184,2.24415,2064.9,2064.8,0.9685]
[1742992988182,0.9685,2064.8,2064.7,2.3745]
[1742992988389,2.9569,2064.8,2064.7,2.3745]
[1742992992596,2.2971,2064.8,2064.7,2.3745]
[1742992992893,1.3286,2064.8,2064.7,3.0535]
[1742992993092,1.2974,2064.9,2064.8,0.96845]
[1742992993297,1.2974,2065.0,2064.9,0.96845]
[1742992993494,1.2974,2065.0,2064.9,42.45425]
[1742992993883,4.1834559,2065.1,2064.9,42.45425]
[1742992993884,3.2150759,2065.1,2065.0,0.9684]
[1742992994090,5.4808259,2065.1,2065.0,2.2733]
[1742992994400,2.2730259,2065.1,2065.0,2.2733]
[1742992997504,2.2730259,2065.1,2065.0,2.9469]
[1742992998304,1.3046759,2065.1,2065.0,2.9469]
[1742992999495,0.0072759,2065.1,2065.0,2.9469]
[1742993000293,0.9756259,2065.1,2065.0,43.7469]
[1742993000499,1.3426759,2065.1,2065.0,43.7469]
[1742993002102,2.3110259,2065.1,2065.0,43.7469]
[1742993002305,1.3426759,2065.1,2065.0,43.7469]
[1742993003402,0.9756259,2065.1,2065.0,43.7469]
[1742993003602,0.0072759,2065.1,2065.0,43.7469]
[1742993003998,1.3246759,2065.1,2065.0,43.7469]
[1742993004306,0.0072759,2065.1,2065.0,43.7469]
[1742993005204,1.3246759,2065.1,2065.0,43.7469]
[1742993015214,0.0072759,2065.1,2065.0,43.7469]
[1742993019826,1.3291759,2065.1,2065.0,43.7469]
[1742993023130,3.2078,2065.3,2065.2,0.96831]
[1742993023417,2.42034,2065.6,2065.3,0.96826]
[1742993023418,1.3123,2065.4,2065.3,0.96826]
[1742993023924,1.3123,2065.4,2065.3,41.76826]
[1742993024123,1.3123,2065.4,2065.3,43.09866]
[1742993027025,2.28051,2065.4,2065.3,41.76826]
[1742993028826,1.3123,2065.4,2065.3,41.76826]
[1742993029026,1.3123,2065.4,2065.3,42.45336]
[1742993030136,2.28051,2065.4,2065.3,42.45336]
[1742993030631,1.3123,2065.4,2065.3,42.45336]
[1742993030838,3.2150759,2065.6,2065.5,0.96817]
[1742993031026,0.0072759,2065.6,2065.5,0.96817]
[1742993031334,7.49926581,2065.7,2065.6,0.96812]
[1742993032232,2.31894,2065.8,2065.7,0.96807]
[1742993032431,0.97283134,2065.8,2065.7,0.96807]
[1742993032732,0.00479134,2065.8,2065.7,0.96807]
[1742993033037,0.00479134,2065.8,2065.7,2.37527]
[1742993038048,0.64959134,2065.8,2065.7,2.37527]
[1742993038653,1.61762134,2065.8,2065.7,0.96807]
[1742993039948,4.82542134,2065.8,2065.7,0.96807]
[1742993041151,1.61762134,2065.8,2065.7,0.96807]
[1742993041553,5.62762,2066.1,2065.7,0.96807]
[1742993041554,4.17573,2066.1,2066.0,0.96793]
[1742993041854,0.96798,2066.0,2065.9,0.96794]
[1742993042053,0.96798,2066.0,2065.9,2.28564]
[1742993043458,4.17573,2066.1,2066.0,0.96793]
[1742993043658,4.17573,2066.1,2066.0,2.25953]
[1742993044550,4.17573,2066.1,2066.0,0.96793]
[1742993044757,5.44963,2066.1,2066.0,0.96793]
[1742993048266,0.96798,2066.0,2065.9,0.96795]
[1742993048459,2.31848,2066.0,2065.9,0.96795]
[1742993049961,14.7125,2066.0,2064.5,0.36199357]
[1742993050158,3.2078,2064.6,2064.5,0.96864]
[1742993050652,3.2078,2064.9,2064.5,0.96864]
[1742993050856,2.31734,2065.0,2064.6,2.42147]
[1742993051056,3.2078,2064.8,2064.7,0.96854]
[1742993051251,0.6575759,2065.0,2064.7,1.61164]
[1742993051451,0.6575759,2065.0,2064.9,0.96845]
[1742993051655,0.6575759,2065.0,2064.9,41.76845]
[1742993052058,0.6575759,2065.0,2064.9,40.8]
[1742993052360,0.6575759,2065.0,2064.9,41.76845]
[1742993052563,1.6259759,2065.0,2064.9,40.8]
[1742993055066,4.8069759,2065.0,2064.9,40.8]
[1742993055265,0.96854,2064.7,2064.6,0.9758659]
[1742993055468,0.96854,2064.7,2064.6,0.0072759]
[1742993055767,0.96854,2064.7,2064.6,40.8072759]
[1742993055968,0.96854,2064.7,2064.6,0.0072759]
[1742993056268,4.15254,2064.7,2064.6,0.0072759]
[1742993058072,4.15254,2064.7,2064.6,5.9e-06]
[1742993060066,4.23249221,2064.7,2064.6,5.9e-06]
[1742993063571,4.23249361,2064.7,2064.6,5.9e-06]
[1742993064776,5.55429361,2064.7,2064.6,5.9e-06]
[1742993065168,5.55429325,2064.7,2064.6,5.9e-06]
[1742993067673,1.04849325,2064.7,2064.6,5.9e-06]
[1742993067981,0.96854,2064.7,2064.6,0.9685959]
[1742993068180,2.30684,2064.7,2064.6,0.9685959]
[1742993068373,2.30684,2064.7,2064.6,2.9378959]
[1742993074282,2.30684,2064.7,2064.6,5.9e-06]
[1742993074483,3.05560476,2064.7,2064.6,5.9e-06]
[1742993076085,3.05560323,2064.7,2064.6,5.9e-06]
[1742993077682,3.05560261,2064.7,2064.6,5.9e-06]
[1742993078189,2.97564,2064.7,2064.6,5.9e-06]
[1742993078482,2.30684,2064.7,2064.6,0.9685959]
[1742993078889,2.30684,2064.7,2064.6,1.6085959]
[1742993079391,2.30684,2064.7,2064.6,42.4085959]
[1742993079991,0.96854,2064.7,2064.6,42.4085959]
[1742993081183,8.74203,2064.8,2064.7,0.96854]
[1742993081391,8.74203,2064.8,2064.7,2.32484]
[1742993082384,0.96854,2064.7,2064.6,5.9e-06]
[1742993082688,3.03194,2064.7,2064.6,5.9e-06]
[1742993083191,3.1119042,2064.7,2064.6,5.9e-06]
[1742993085197,3.86521907,2064.7,2064.6,5.9e-06]
[1742993087003,4.77310538,2064.7,2064.6,5.9e-06]
[1742993087201,4.77310321,2064.7,2064.6,5.9e-06]
[1742993088802,3.86521765,2064.7,2064.6,5.9e-06]
[1742993090303,4.77306844,2064.7,2064.6,5.9e-06]
[1742993090498,4.77306844,2064.7,2064.6,1.3819059]
[1742993091096,4.77306844,2064.7,2064.6,5.9e-06]
[1742993093204,3.86521765,2064.7,2064.6,5.9e-06]
[1742993093704,4.77288177,2064.7,2064.6,5.9e-06]
[1742993095306,4.77285889,2064.7,2064.6,5.9e-06]
[1742993096704,4.77286221,2064.7,2064.6,5.9e-06]
[1742993097405,3.86519809,2064.7,2064.6,5.9e-06]
[1742993098798,4.77270018,2064.7,2064.6,5.9e-06]
[1742993101097,7.27270018,2064.7,2064.6,5.9e-06]
[1742993103007,4.77268371,2064.7,2064.6,5.9e-06]
[1742993105107,4.77268371,2064.7,2064.6,1.4129059]
[1742993106016,3.86518162,2064.7,2064.6,1.4129059]
[1742993107411,4.7730753,2064.7,2064.6,1.4129059]
[1742993107717,4.69314855,2064.7,2064.6,5.9e-06]
[1742993107917,4.77310124,2064.7,2064.6,5.9e-06]
[1742993108511,7.27310124,2064.7,2064.6,5.9e-06]
[1742993109016,17.14310124,2064.7,2064.6,5.9e-06]
[1742993109515,17.14309818,2064.7,2064.6,5.9e-06]
[1742993111019,17.14309735,2064.7,2064.6,5.9e-06]
[1742993111713,17.83856838,2064.7,2064.6,5.9e-06]
[1742993112315,0.96882,2064.1,2064.0,1.3632]
[1742993112511,7.32962,2064.1,2064.0,2.0465]
[1742993112818,8.08396263,2064.1,2064.0,2.0465]
[1742993113117,7.32962,2064.1,2064.0,2.0465]
[1742993113314,8.68112,2064.1,2064.0,2.0465]
[1742993115513,9.51485596,2064.1,2064.0,2.0465]
[1742993117420,0.96887,2064.0,2063.9,0.7049]
[1742993117624,2.29127,2064.0,2063.9,2.1155]
[1742993120022,2.29127,2064.0,2063.9,2.8081]
[1742993121426,0.96892,2063.9,2063.8,0.0072759]
[1742993121615,2.99547697,2063.9,2063.8,0.0072759]
[1742993123526,2.99543266,2063.9,2063.8,0.0072759]
[1742993123924,2.99542701,2063.9,2063.8,0.0072759]
[1742993125529,2.99542188,2063.9,2063.8,0.0072759]
[1742993127327,2.99541317,2063.9,2063.8,0.0072759]
[1742993128525,2.91552,2063.9,2063.8,0.0072759]
[1742993128718,2.99541969,2063.9,2063.8,0.0072759]
[1742993130224,2.99542101,2063.9,2063.8,0.0072759]
[1742993131833,2.99542663,2063.9,2063.8,0.0072759]
[1742993133525,2.35152663,2063.9,2063.8,0.0072759]
[1742993134831,4.10492,2063.9,2063.8,0.0072759]
[1742993135031,0.96892,2063.9,2063.8,0.9762359]
[1742993135234,4.10692,2063.9,2063.8,2.2597359]
[1742993135433,4.10692,2063.9,2063.8,1.2907759]
[1742993137629,4.10692,2063.9,2063.8,2.2597359]
[1742993139639,4.10692,2063.9,2063.8,1.2907759]
[1742993139840,4.10692,2063.9,2063.8,2.2597359]
[1742993140334,0.96892,2063.9,2063.8,2.2597359]
[1742993141334,0.96887,2064.0,2063.9,0.96892]
[1742993141535,0.96887,2064.0,2063.9,3.01862]
[1742993141731,0.96887,2064.0,2063.9,3.65832]
[1742993142439,0.96887,2064.0,2063.9,2.6894]
[1742993142632,2.26467,2064.0,2063.9,2.6894]
[1742993142832,2.26467,2064.0,2063.9,3.65832]
[1742993143032,2.26467,2064.0,2063.9,2.6894]
[1742993144036,2.26467,2064.0,2063.9,3.65832]
[1742993152745,0.96887,2064.0,2063.9,3.65832]
[1742993153645,2.27957,2064.0,2063.9,3.65832]
[1742993157950,5.48737,2064.0,2063.9,3.65832]
[1742993162055,5.48737,2064.0,2063.9,2.0497]
[1742993162252,5.48737,2064.0,2063.9,3.01862]
[1742993162847,5.48737,2064.0,2063.9,2.0497]
[1742993163156,0.96892,2063.9,2063.8,0.0072759]
[1742993163354,2.42264,2063.7,2063.2,1.63773]